Cogmind - Beta 13 @@@ ROGUE MODE // 2024.06.13 @ 03:41:20 Player: Udabudha Result: Destroyed by G-47 Trooper with Particle Gun Performance ------------- Evolutions (2) 1000 Regions Visited (5) 1000 Robots Destroyed (25) 125 Value Destroyed (666) 666 Prototype IDs (24) 480 Alien Tech Used (0) 0 Bonus (300) 300 TOTAL SCORE: 3571 Bonus ------- Aligned with FarCom 300 Cogmind --------- Core Integrity 0/550 Matter 59/300 Energy 49/100 System Corruption 0% Temperature Cool (12) Movement Walking (120) Location -8/Materials Parts ------- > --- POWER (3) -------- (None) > --- PROPULSION (3) --- Improved Aluminum Leg Improved Aluminum Leg Improved Aluminum Leg > --- UTILITY (3) ------ Advanced Targeting Computer Improved Utility Shielding > --- WEAPON (2) ------- Rocket Launcher > --- INVENTORY (5) ---- (None) Peak State ------------ > --- POWER ------------ Ion Engine Light Deuterium Engine Light Nuclear Core > --- PROPULSION ------- Aluminum Leg Improved Aluminum Leg Improved Aluminum Leg > --- UTILITY ---------- Advanced Targeting Computer Improved Utility Shielding Medium Armor Plating > --- WEAPON ----------- Guided Plasma Cannon Mini Grenade Launcher > --- INVENTORY -------- (None) [Rating: 30] Favorites ----------- Power Light Deuterium Engine Engine Light Deuterium Engine Power Core Light Nuclear Core Propulsion Compact Wheel Leg Aluminum Leg Wheel Compact Wheel Utility Sensor Array Device Sensor Array Storage High-capacity Storage Unit Processor Improved Signal Interpreter Protection Improved Utility Shielding Weapon Guided Plasma Cannon Energy Gun EM Pulse Gun Energy Cannon Guided Plasma Cannon Ballistic Gun Enhanced Autogun Ballistic Cannon Heavy Assault Cannon Launcher Mini Grenade Launcher Build | -11 -10 -10 -10 -9 -8 ------- Run | Yrd Mat Min Exi Min Mat Slots Evolved 4 | . . . . . 4 Power 2 | . . . . . 2 Propulsion 1 | . . . . . 1 Utility 1 | . . . . . 1 Weapon . | . . . . . . Parts Attached 33 | 6 1 3 2 4 17 Power 4 | 1 . 1 . . 2 Engine 3 | 1 . 1 . . 1 Core 1 | . . . . . 1 Reactor . | . . . . . . Propulsion 11 | 2 . . . 1 8 Treads . | . . . . . . Leg 9 | . . . . 1 8 Wheel 2 | 2 . . . . . Hover . | . . . . . . Flight . | . . . . . . Utility 7 | 1 1 1 . 2 2 Device 1 | . 1 . . . . Storage 2 | 1 . . . 1 . Processor 2 | . . 1 . . 1 Hackware . | . . . . . . Protection 2 | . . . . 1 1 Artifact . | . . . . . . Weapon 11 | 2 . 1 2 1 5 Energy Gun 3 | 2 . . . . 1 Energy Cannon 4 | . . . 2 . 2 Ballistic Gun 1 | . . . . . 1 Ballistic Cannon 1 | . . 1 . . . Launcher 2 | . . . . 1 1 Special Weapon . | . . . . . . Impact Weapon . | . . . . . . Slashing Weapon . | . . . . . . Piercing Weapon . | . . . . . . Special Melee Weapon . | . . . . . . Unidentified Prototypes 1 | . . . . . 1 Parts Lost 15 | . . . . 1 14 Power 2 | . . . . . 2 Propulsion 7 | . . . . 1 6 Utility 1 | . . . . . 1 Weapon 5 | . . . . . 5 Highest Loss Streak 9 | . . . . 1 9 To Critical Strikes . | . . . . . . Average Slot Usage (%) 86 | . 100 90 96 94 76 Engine 14 | . 14 14 14 14 15 Core 1 | . . . . . 3 Leg 8 | . . . . 5 16 Wheel 14 | . 28 28 28 22 . Device 7 | . 14 14 14 8 . Storage 3 | . 14 6 . 5 4 Processor 7 | . . 7 14 8 4 Protection 8 | . . . . 5 16 Energy Gun 2 | . 28 9 . . . Energy Cannon 12 | . . . 20 17 7 Ballistic Cannon 1 | . . 9 3 . . Launcher 4 | . . . . 5 7 Naked Turns . | . . . . . . Heaviest Build 70 | 14 15 23 26 48 70 Greatest Support 39 | 26 26 26 26 26 39 Greatest Overweight (x) 15 | . . . . 15 6 Average Overweight (x) . | . . . . . 1 Largest Inventory Capacity 20 | 8 8 8 5 20 20 Average Capacity 8 | 7 8 6 5 10 11 Most Carried 8 | 5 8 8 5 5 3 Average Carried 2 | 3 6 6 4 3 . Final Capacity 20 | 8 8 5 5 20 5 Final Carried 8 | 4 8 5 5 2 . Class Distribution -------------------- 91% | Mutant 8% | Skirmisher Dominant Class ---------------- Mutant | -10/Materials Mutant | -10/Mines Mutant | -10/Exiles Skirmisher | -9/Mines Mutant | -8/Materials Resources | -11 -10 -10 -10 -9 -8 ----------- Run | Yrd Mat Min Exi Min Mat Matter Collected 464 | 254 . . . 182 28 Remotely . | . . . . . . Salvage Created 699 | . 88 . . 207 404 Parts 40 | . 7 . . 12 21 Haulers Intercepted . | . . . . . . Recyclers Shooed . | . . . . . . Parts Field Recycled . | . . . . . . Retrieved Matter . | . . . . . . Parts Self-Destructed . | . . . . . . Prevented . | . . . . . . Kills | -11 -10 -10 -10 -9 -8 ------- Run | Yrd Mat Min Exi Min Mat Combat Hostiles Destroyed 20 | . 4 . . 7 9 Guns 2 | . 2 . . . . Cannons 8 | . . . . 6 2 AOE 9 | . 2 . . . 7 Classes Destroyed 7 | . 2 . . . 5 Worker 2 | . . . . . 2 Builder 2 | . . . . . 2 Recycler 1 | . . . . . 1 Swarmer 7 | . 3 . . 4 . Grunt 10 | . 1 . . 3 6 Duelist 1 | . . . . . 1 Sentry 2 | . . . . . 2 Best Kill Streak 13 | . 4 . . 4 13 Combat Bots Only 8 | . 4 . . 4 8 Max Kills in Single Turn 3 | . 1 . . 1 3 Gunslinging . | . . . . . . Exploded 1 | . 1 . . . 1 Melee . | . . . . . . Uniques/NPCs Destroyed . | . . . . . . Combat | -11 -10 -10 -10 -9 -8 -------- Run | Yrd Mat Min Exi Min Mat Hostile Shots Fired 186 | . 10 . . 32 144 Missed 41 | . 3 . . 8 30 Damage Taken 2365 | . 65 . . 318 1982 Core 653 | . 10 . . 83 560 Absorbed by Shields . | . . . . . . Redirected to Shielding 6 | . . . . 6 . Core Remaining (%) 81 | 100 . . . 62 . Volleys Fired 53 | . 6 . . 16 31 Largest 2 | . 2 . . 1 2 Hottest 120 | . 80 . . 120 120 Shots Fired 60 | . 12 . . 16 32 Gun 25 | . 12 . . . 13 Cannon 22 | . . . . 16 6 Launcher 13 | . . . . . 13 Special . | . . . . . . Kinetic 10 | . . . . . 10 Thermal 24 | . . . . 16 8 Explosive 13 | . . . . . 13 Electromagnetic 13 | . 12 . . . 1 Robot Hit Streak 22 | . 5 . . 19 22 Robot Miss Streak 4 | . 1 . . . 4 Penetration Max . | . . . . . . Secondary Targets 2 | . 2 . . . . Max Gunslinging Chain 1 | . 1 . . . . Shots Hit Robots 49 | . 10 . . 16 23 Core Hits 42 | . 4 . . 5 33 Critical Kills . | . . . . . . Critical Parts Destroyed . | . . . . . . Critical Strikes . | . . . . . . Melee Attacks . | . . . . . . Impact . | . . . . . . Slashing . | . . . . . . Piercing . | . . . . . . Sneak Attacks . | . . . . . . Combat Hostiles . | . . . . . . Follow-up Attacks . | . . . . . . Damage Inflicted 2391 | . 186 . . 583 1622 Guns 308 | . 113 . . . 195 Cannons 783 | . . . . 583 200 Explosions 1294 | . 73 . . . 1221 Melee . | . . . . . . Ramming 6 | . . . . . 6 Kinetic 161 | . . . . . 161 Thermal 868 | . 73 . . 583 212 Explosive 1221 | . . . . . 1221 Electromagnetic 135 | . 113 . . . 22 Impact . | . . . . . . Slashing . | . . . . . . Piercing . | . . . . . . Highest Corruption . | . . . . . . Average Corruption . | . . . . . . Corruption Purged . | . . . . . . Corruption Blocked . | . . . . . . Overload Shots . | . . . . . . Overflow Damage 66 | . . . . 42 24 Projectiles 42 | . . . . 42 . Explosions 24 | . . . . . 24 Melee . | . . . . . . Knockbacks . | . . . . . . Impact . | . . . . . . Kinetic . | . . . . . . Secondary . | . . . . . . Self-Inflicted Damage 202 | . . . . . 202 Shots 6 | . . . . . 6 Rammed . | . . . . . . Targets Rammed 1 | . . . . . 1 Kicked 1 | . . . . . 1 Crushed . | . . . . . . Highest Temperature 793 | . 84 . . 793 464 Average Temperature 240 | . 45 . . 319 204 Received Heat Transfer 1143 | . 12 . . 114 1017 Effects 22 | . . . . 18 4 Shutdowns 7 | . . . . 5 2 Energy Bleed 2 | . . . . . 2 Interference 4 | . . . . 4 . Matter Decay 2 | . . . . 2 . Short Circuit 1 | . . . . 1 . Damage (minor) 5 | . . . . 5 . Damage (core) 1 | . . . . 1 . Siege Activations . | . . . . . . Robots Corrupted . | . . . . . . Combat Hostiles . | . . . . . . Parts Fried . | . . . . . . Impact Corruptions . | . . . . . . Robots Melted 1 | . . . . 1 . Combat Hostiles 1 | . . . . 1 . Parts Melted 5 | . . . . 5 . Heat Transferred 1804 | . 50 . . 1280 474 Parts Sabotaged . | . . . . . . Parts Stolen . | . . . . . . Parts Stripped . | . . . . . . Power Chain Reactions 2 | . 2 . . . . Alert | -11 -10 -10 -10 -9 -8 ------- Run | Yrd Mat Min Exi Min Mat Peak Influence 289 | . 120 46 . 160 289 Initial 58 | . . 46 . . 58 Average 65 | . 26 46 . 125 64 Maximum Alert Level 1 | . . . . . 1 Low Security (%) 94 | 100 100 100 . 100 90 Level 1 5 | . . . . . 9 Level 2 . | . . . . . . Level 3 . | . . . . . . Level 4 . | . . . . . . Level 5 . | . . . . . . High Security . | . . . . . . Max Security . | . . . . . . Squads Dispatched 5 | . 1 . . . 4 Investigation 2 | . . . . . 2 Extermination . | . . . . . . Reinforcement 2 | . 1 . . . 1 Assault . | . . . . . . Garrison 1 | . . . . . 1 Intercept . | . . . . . . Searches Triggered . | . . . . . . Construction Impeded 1 | . . . . . 1 Haulers Reinforced . | . . . . . . Active Scanning Responses . | . . . . . . Cargo Convoy Interrupts . | . . . . . . Stealth | -11 -10 -10 -10 -9 -8 --------- Run | Yrd Mat Min Exi Min Mat Distress Signals 3 | . . . . . 3 Communications Jammed . | . . . . . . Distress Signals . | . . . . . . Times Spotted 37 | . 5 . . 11 21 Peak Tracking Total 8 | . 4 . . 4 8 Tactical Retreats 1 | . . . . . 1 Traps | -11 -10 -10 -10 -9 -8 ------- Run | Yrd Mat Min Exi Min Mat Traps Triggered 2 | . . . . . 2 Indirectly . | . . . . . . Trap Hack Attempts . | . . . . . . Triggered . | . . . . . . Disarmed . | . . . . . . Reprogrammed . | . . . . . . Reused . | . . . . . . Traps Extracted . | . . . . . . Installed . | . . . . . . Triggered . | . . . . . . Machines | -11 -10 -10 -10 -9 -8 ---------- Run | Yrd Mat Min Exi Min Mat Machines Disabled 1 | . . . . . 1 Max in Single Turn 1 | . . . . . 1 Machines Repaired . | . . . . . . Machines Dismantled . | . . . . . . Machines Sabotaged . | . . . . . . Overloaded Fab Kills . | . . . . . . Hacking | -11 -10 -10 -10 -9 -8 --------- Run | Yrd Mat Min Exi Min Mat Machines Accessed 6 | . . 1 4 . 1 Terminals 1 | . . . . . 1 Fabricators . | . . . . . . Repair Stations . | . . . . . . Recycling Units . | . . . . . . Scanalyzers . | . . . . . . Garrison Access . | . . . . . . Total Hacks 32 | . . 1 27 . 4 Successful 29 | . . 1 27 . 1 Failed 3 | . . . . . 3 Catastrophic . | . . . . . . Database Lockouts . | . . . . . . Manual 4 | . . . 4 . . Terminals 4 | . . . . . 4 Fabricators . | . . . . . . Repair Stations . | . . . . . . Recycling Units . | . . . . . . Scanalyzers . | . . . . . . Garrison Access . | . . . . . . Terminal Hacks 29 | . . 1 27 . 1 Record 26 | . . . 26 . . Open Door 1 | . . 1 . . . Alert Level 1 | . . . . . 1 Derelict Proto ID Bank 1 | . . . 1 . . Fabricator Hacks . | . . . . . . Repair Station Hacks . | . . . . . . Recycling Unit Hacks . | . . . . . . Scanalyzer . | . . . . . . Garrison Access Hacks . | . . . . . . Unauthorized Hacks . | . . . . . . Terminals . | . . . . . . Fabricators . | . . . . . . Repair Stations . | . . . . . . Recycling Units . | . . . . . . Scanalyzers . | . . . . . . Garrison Access . | . . . . . . Data Cores Recovered . | . . . . . . Used . | . . . . . . Hacking Detections 1 | . . . . . 1 Full Trace Events 1 | . . . . . 1 Feedback Events . | . . . . . . Feedback Blocked . | . . . . . . Robot Schematics Acquired . | . . . . . . Robots Built . | . . . . . . Authchips . | . . . . . . Time . | . . . . . . Total Robot Build Rating . | . . . . . . Part Schematics Acquired . | . . . . . . Parts Built . | . . . . . . Authchips . | . . . . . . Time . | . . . . . . Total Part Build Rating . | . . . . . . Parts Repaired . | . . . . . . Time . | . . . . . . Parts Recycled . | . . . . . . Recycled Matter . | . . . . . . Retrieved Matter . | . . . . . . Retrieved Components . | . . . . . . Parts Scanalyzed . | . . . . . . Part Schematics Acquired . | . . . . . . Parts Damaged . | . . . . . . Bothacking | -11 -10 -10 -10 -9 -8 ------------ Run | Yrd Mat Min Exi Min Mat Used RIF Installer . | . . . . . . Robots Hacked . | . . . . . . Non-combat . | . . . . . . Combat . | . . . . . . Robot Hacks Applied . | . . . . . . Relay Couplers Released . | . . . . . . Fabnet Peak Effective % . | . . . . . . Robots Rewired . | . . . . . . Allies Hacked . | . . . . . . Hacks Repelled . | . . . . . . Allies | -11 -10 -10 -10 -9 -8 -------- Run | Yrd Mat Min Exi Min Mat Total Allies . | . . . . . . Largest Group . | . . . . . . Highest-Rated Group . | . . . . . . Highest-Rated Ally . | . . . . . . Total Orders . | . . . . . . Ally Attacks . | . . . . . . Total Damage . | . . . . . . Kills . | . . . . . . Allies Corrupted . | . . . . . . Allies Melted . | . . . . . . Intel | -11 -10 -10 -10 -9 -8 ------- Run | Yrd Mat Min Exi Min Mat Robot Analysis Total . | . . . . . . Derelict Logs Recovered 1 | . . . . 1 . Drone Launches . | . . . . . . Drone Recoveries . | . . . . . . Exploration | -11 -10 -10 -10 -9 -8 ------------- Run | Yrd Mat Min Exi Min Mat Turns Passed 2089 | 139 115 85 616 273 861 Spaces Moved 1363 | 48 101 82 678 179 275 Core 77 | 10 . . . 1 66 Treads . | . . . . . . Legs 209 | . . . . . 209 Wheels 1077 | 38 101 82 678 178 . Hover . | . . . . . . Flight . | . . . . . . Fastest Speed 50 | 50 90 90 90 90 50 Average Speed 116 | 81 90 90 90 110 210 Slowest Speed 800 | 90 90 90 90 800 540 Overloaded Moves . | . . . . . . Propulsion Burnouts . | . . . . . . Robots Hopped . | . . . . . . Cave-ins Triggered . | . . . . . . Exploration Rate (%) 37 | 5 26 17 92 52 30 Regions Visited 5 Branch Regions 3 Pre-discovered Areas 2 | . . 1 . 1 . Known Exits Taken 2 | . . 1 1 . . Unknown Exits Taken 3 | 1 1 . . 1 . Scrap Searched 1 | . . . . 1 . Spaces Dug . | . . . . . . Terrain Destroyed 73 | . 4 . . . 69 Melee . | . . . . . . Projectile . | . . . . . . AOE 73 | . 4 . . . 69 Terrain Rammed . | . . . . . . Walls Destroyed . | . . . . . . Machines Disabled . | . . . . . . Actions | -11 -10 -10 -10 -9 -8 --------- Run | Yrd Mat Min Exi Min Mat Total 1814 | 147 112 95 683 246 531 Wait 320 | 84 . 2 . 43 191 Move 1358 | 47 100 81 677 178 275 Hop . | . . . . . . Pick Up 34 | 10 5 3 1 . 15 Fast Attach 3 | . . 1 2 . . Attach 30 | 6 1 2 . 4 17 Detach 1 | . . . . 1 . Swap . | . . . . . . Drop 13 | . . 6 2 4 1 Fire 53 | . 6 . . 16 31 Melee . | . . . . . . Ram . | . . . . . . Kick 1 | . . . . . 1 Crush . | . . . . . . Escape Stasis . | . . . . . . Rewire 1 | . . . 1 . . Trap . | . . . . . . Miscellaneous . | . . . . . . Route ------- -11/Scrapyard -10/Materials -10/Mines -10/Exiles (discovered 2 exits: *Min x2) -9/Mines -8/Materials History --------- Turn | Location | Event 6 | -11/Scrapyard | Discovered new exit (range 16) 140 | -11/Scrapyard | Entered Materials 226 | -10/Materials | Discovered new exit (range 16) 255 | -10/Materials | Entered Mines 256 | -10/Mines | Learned location of Storage (-9) 275 | -10/Mines | Met a Derelict who couldn't figure out how to use a Trap Extractor 315 | -10/Mines | Build established: Mutant 335 | -10/Mines | Deemed a non-threat by the Exiles lab entrance 335 | -10/Mines | Discovered new exit (range 5) 338 | -10/Mines | Identified exit to Exiles 340 | -10/Mines | Entered Exiles 355 | -10/Exiles | Discovered new exit (range 15) 368 | -10/Exiles | Met 8R-AWN 385 | -10/Exiles | Met EX-HEX 423 | -10/Exiles | Met EX-BIN 441 | -10/Exiles | Aligned with FarCom system 442 | -10/Exiles | Given EX-Vault access code 495 | -10/Exiles | Opened EX-Vault 503 | -10/Exiles | Found Latent Energy Streamer 506 | -10/Exiles | Found Gui. Plasma Cannon 536 | -10/Exiles | Warned to stay clear of 0b10 Research branches 560 | -10/Exiles | Met EX-DEC 635 | -10/Exiles | Visited The Gauntlet 774 | -10/Exiles | Discovered new exit (range 14) 785 | -10/Exiles | Identified exit to Mines 956 | -10/Exiles | Stole two prototypes: Gui. Plasma Cannon, Latent Energy Streamer 956 | -10/Exiles | Entered Mines 1217 | -9/Mines | Discovered new exit (range 6) 1229 | -9/Mines | Entered Materials 1229 | -8/Materials | Evolved 4 slots: Power x2, Propulsion x1, Utility x1 1930 | -8/Materials | Garrison activated, responded to threat 1984 | -8/Materials | Core integrity fell below 50% 1990 | -8/Materials | Destroyed 8 combat bots 2020 | -8/Materials | Lost 9 parts (2p3n1u3w) 2065 | -8/Materials | Core integrity fell below 20% 2090 | -8/Materials | Destroyed by G-47 Trooper with Particle Gun Last Messages --------------- Identified Enh. Autogun. Critical hit (Burn: +37). Y-45 Defender destroyed. Critical hit (Burn: +37). EM Pulse Cannon destroyed. Imp. Aluminum Leg destroyed. Y-45 Defender destroyed. Acquired Imp. Aluminum Leg. Aluminum Leg destroyed. Imp. Aluminum Leg destroyed. Acquired Imp. Aluminum Leg. R-06 Scavenger collects Imp. Ion Engine. Acquired Imp. Aluminum Leg. Enh. Autogun destroyed. Critical hit (Burn: +37). R-06 Scavenger collects Corrupted Beam Rifle. R-06 Scavenger collects Heat Sink. Acquired Rocket Launcher. M-13 Machinist repairs Particle Gun. R-06 Scavenger collects Lgt. Armor Plating. Map ----- +----------------------------------------------------+ | ??????????????##########?????????????????????????? | | #####?????????# #?????????????????????????? | | ########### """ #?????????????????????????? | | # """ #?????????????????????????? | | !# """ #?????????????????????????? | | ** # #?????????????????????????? | | * # """ #?????????????????????????? | | # """ #?????????????????????????? | | =% # """ #?????????????????????????? | | ! = # #?????????????????????????? | | % #####+####?????????????????????????? | | = # #+#### #?????????????????????????? | | * ###+##########????????????? | | = ??????????? | | T ??????????? | | % = w ??????????? | | % ##############????????????? | | ########+#### #?????????????????????????? | | ## ??????? ??### ###?????????????????????????? | | ?# #???????? ???# w #???????????????????????????? | | ?# #???????? #??# #???????????????????????????? | | ##/######???? #??# #?########??????????????????? | | #?????#??# #?#! [ #??????????????????? | | !!! #????????# #?# * #??????????????????? | | !! #????????# #?#[ gg! #??????????????????? | | !! #????????# #?# @mgg #??????????????????? | | #????????# #?# !%! #???????w??????????? | | #????????# #?# r #?????????g????????? | | = #????????# #####k##########????????????? | | #????????# g??????? | | #????????# ##### #####??????????????? | | ####/####????????# #???# #??????????????????? | | +????????Y###+######+##+#??????????????????? | | #?????????# T #??????????????????? | | !!! #?????????# """" #??????????????????? | | !!! #?????????# """" #??????????????????? | | !! #?????????# """" #??????????????????? | | +?????????# #??????????????????? | | #?????????# #??????????????????? | | #?????????###############??????????????????? | | #??????????????????????????????????????????? | | #??????????????????????????????????????????? | | ###########????????????????????????????????? | | !!! # #????????????????????????????????? | | !!! # #????????????????????????????????? | | !! # #????????????????????????????????? | | # """ #????????????????????????????????? | | + [ """ #????????????????????????????????? | | # """ #????????????????????????????????? | | #! #????????????????????????????????? | +----------------------------------------------------+ Best States ------------- Heat Dissipation 31 Energy Generation 28 Energy Capacity 350 Matter Stores 294 Matter Capacity 300 Sight Range 16 Robot Scan Range 14 Terrain Scan Density 10 Armor Coverage 225 Utility Shielding 66 Evasion (%) 55 Targeting Accuracy 8 Item Schematics ----------------- None Robot Schematics ------------------ None Fabricated ------------ Nothing Alien Tech Used ----------------- None Achievements -------------- It's Just You Challenges ------------ None Game ------ Seed DispersionGatlingMultirail Manual? 0 Play Time 00:33:22 Cumulative 1.5 hours Start 2024.06.13 @ 02:59:19 End 2024.06.13 @ 03:41:20 Sessions 2 Manual Loads 0 Difficulty Rogue Special Mode None Game No. 4 Rogue 1 Adventurer 1 Explorer 2 Win Type - Total 0 Types 0/0/0/0/0/0/0/0/0 Lore% 10 Gallery% 7 Achievement% 12 Wizard Run 0 Options --------- Layout 2 ASCII 0 Keyboard 0 Movement Mouse Keybinds 0 Fullscreen 1 Font 48/Smallcaps Map View 50x44 Zoom Use 0% Tactical HUD 0 Map Filters NONE Filters NONE Steam 1 RUN: 7e48134e-2a37-450c-91f9-cb67c001baae